fUSD/lending_fUSD_20250807
["ID","MTS","AMOUNT","RATE_DAILY","PERIOD"]
[377889353,1754599833167,-151.0,0.00018328,2]
[377889354,1754599833180,-151.0,0.00018328,2]
[377889355,1754599833192,-151.0,0.00018328,2]
[377889356,1754599833206,-151.0,0.00018328,2]
[377889357,1754599833219,-151.0,0.00018328,2]
[377889358,1754599833231,-151.0,0.00018328,2]
[377889359,1754599833243,-151.0,0.00018328,2]
[377889360,1754599833257,-500.0,0.00018383,2]
[377889361,1754599833269,-2450.67555926,0.00018383,2]
[377889362,1754599833315,-2211.83725268,0.00018383,2]
[377889363,1754599833327,-1927.6133113,0.000184,5]
[377889364,1754599833487,-908.82537662,0.000184,5]
[377889365,1754599833503,-1010.4,0.000184,5]
[377889366,1754599833520,-842.76868407,0.000184,5]
[377889370,1754599838033,-821.39262801,0.000184,5]
[377889371,1754599838043,-500.0,0.00018438,2]
[377889372,1754599838053,-4835.02578598,0.00018438,2]
[377889373,1754599838063,-500.0,0.00018493,2]
[377889374,1754599838072,-4612.84644159,0.00018493,2]
[377889375,1754599838084,-401.07529847,0.00018493,2]
[377889376,1754599838093,-500.0,0.00018548,2]
[377889377,1754599838103,-187.19284122,0.00018548,2]
[377889378,1754599838119,-1445.11824996,0.00018548,2]
[377889379,1754599838131,-1306.5162765,0.00018548,2]
[377889380,1754599838143,-1888.0,0.00018548,2]
[377889381,1754599838159,-372.60947676,0.00018548,2]
[377889382,1754599838169,-500.0,0.00018603,2]
[377889383,1754599838179,-5340.02052324,0.00018603,2]
[377889384,1754599838191,-51.79548445,0.00018603,2]
[377889385,1754599838201,-500.0,0.00018658,2]
[377889386,1754599838210,-3401.48996556,0.00018658,2]
[377889387,1754599838230,-1357.4837235,0.00018658,2]
[377889567,1754599840075,-352.49214,0.00018658,2]
[377889579,1754599840184,-524.31828359,0.00018658,2]
[377889581,1754599840194,-27.36603391,0.00018712,2]
[377889587,1754599840240,-472.63396609,0.00018712,2]
[377889589,1754599840250,-500.0,0.00018713,2]
[377889591,1754599840259,-500.0,0.00018768,2]
[377889593,1754599840268,-180.30992938,0.00018823,2]
[377889595,1754599840280,-319.69007062,0.00018823,2]
[377889597,1754599840289,-256.61497496,0.00018856,2]
[377889600,1754599840303,-330.77360459,0.00018856,2]
[377889602,1754599840315,-12.61142045,0.00018856,2]
[377889604,1754599840324,-388.22,0.00018856,2]
[377889606,1754599840333,-600.0,0.00018876,2]
[377889608,1754599840342,-151.0,0.00018876,2]
[377889610,1754599840352,-5977.0838,0.000189,2]
[377889612,1754599840361,-359.18,0.000189,2]
[377889614,1754599840371,-1016.18,0.0001894,2]
[377889616,1754599840380,-479.549,0.00018973,2]
[377889619,1754599840390,-177.54,0.00019033,2]
[377889621,1754599840399,-457.55740054,0.00019062,2]
[377889623,1754599840409,-211.58213282,0.00019062,2]
[377889624,1754599840425,-160.0,0.00019062,2]
[377889626,1754599840434,-956.0,0.00019062,2]
[377889629,1754599840444,-809.0,0.00019062,2]
[377889631,1754599840453,-1252.0,0.00019062,2]
[377889633,1754599840463,-450.141,0.00019062,2]
[377889635,1754599840472,-597.0,0.00019062,2]
[377889637,1754599840482,-1294.0,0.00019062,2]
[377889639,1754599840494,-865.0,0.00019062,2]
[377889641,1754599840503,-4141.0,0.00019062,2]
[377889643,1754599840514,-21438.0,0.00019062,2]
[377889646,1754599840524,-1837.1616,0.00019067,2]
[377889675,1754599840826,-500.0,0.00019068,2]
[377889676,1754599840871,-1874.7157762,0.00019077,2]
[377889677,1754599840881,-737.90887512,0.00019078,2]
[377889678,1754599840891,-155.16313173,0.00019078,2]
[377889679,1754599840901,-418.2573246,0.00019078,2]
[377889680,1754599840910,-2090.3557,0.00019078,2]
[377889681,1754599840921,-5000.0,0.00019078,2]
[377889682,1754599840930,-150.0,0.00019161,2]
[377889683,1754599840940,-231.06,0.00019168,2]
[377889684,1754599840950,-1874.71577614,0.00019168,2]
[377889686,1754599840959,-300.0,0.00019172,2]
[377889687,1754599840969,-500.0,0.00019173,2]
[377889689,1754599840978,-500.0,0.00019173,2]
[377889691,1754599840987,-500.0,0.00019173,2]
[377889693,1754599840997,-508.04139182,0.00019173,2]
[377889695,1754599841007,-500.0,0.00019173,2]
[377889697,1754599841016,-500.0,0.00019173,2]
[377889699,1754599841026,-500.0,0.00019173,2]
[377889701,1754599841036,-1000.0,0.00019177,2]
[377889703,1754599841046,-6419.96411067,0.00019177,2]
[377889705,1754599841056,-1000.0,0.00019177,2]
[377889707,1754599841065,-300.0,0.00019177,2]
[377889709,1754599841076,-666.0,0.00019177,2]
[377889711,1754599841086,-500.0,0.00019177,2]
[377889713,1754599841096,-703.23672435,0.00019177,2]
[377889715,1754599841106,-282.62695472,0.00019177,2]
[377889717,1754599841116,-201.58491026,0.00019177,2]
[377889719,1754599841125,-173.46637343,0.00019177,2]
[377889721,1754599841135,-2998.9192878,0.00019178,2]
[377889723,1754599841146,-400.0,0.00019178,2]
[377889725,1754599841155,-400.0,0.00019178,2]
[377889727,1754599841165,-260.4316564,0.00019178,2]
[377889729,1754599841178,-400.0,0.00019178,2]
[377889731,1754599841188,-400.0,0.00019178,2]
[377889733,1754599841198,-400.0,0.00019178,2]
[377889735,1754599841208,-500.0,0.00019178,2]
[377889737,1754599841219,-500.0,0.00019178,2]
[377889739,1754599841229,-400.0,0.00019178,2]
[377889741,1754599841239,-400.0,0.00019178,2]
[377889743,1754599841248,-400.0,0.00019178,2]
[377889745,1754599841258,-400.0,0.00019178,2]
[377889747,1754599841267,-400.0,0.00019178,2]
[377889749,1754599841277,-400.0,0.00019178,2]
[377889751,1754599841286,-341.88483965,0.00019178,2]
[377889753,1754599841295,-400.0,0.00019178,2]
[377889755,1754599841305,-400.0,0.00019178,2]
[377889757,1754599841315,-400.0,0.00019178,2]
[377889759,1754599841324,-400.0,0.00019178,2]
[377889762,1754599841336,-400.0,0.00019178,2]
[377889764,1754599841346,-400.0,0.00019178,2]
[377889766,1754599841355,-400.0,0.00019178,2]
[377889768,1754599841364,-400.0,0.00019178,2]
[377889770,1754599841374,-400.0,0.00019178,2]
[377889772,1754599841384,-402.16630023,0.00019178,2]
[377889774,1754599841393,-816.47,0.00019178,2]
[377889776,1754599841403,-400.0,0.00019178,2]
[377889778,1754599841413,-400.0,0.00019178,2]
[377889780,1754599841426,-739.15,0.00019178,2]
[377889782,1754599841435,-400.0,0.00019178,2]
[377889784,1754599841445,-400.0,0.00019178,2]
[377889786,1754599841454,-400.0,0.00019178,2]
[377889788,1754599841464,-623.32,0.00019178,2]
[377889790,1754599841475,-400.0,0.00019178,2]
[377889792,1754599841484,-400.0,0.00019178,2]
[377889794,1754599841494,-208.04774514,0.00019178,2]
[377889796,1754599841503,-674.42,0.00019178,2]
[377889798,1754599841514,-400.0,0.00019178,2]
[377889800,1754599841523,-400.0,0.00019178,2]
[377889802,1754599841532,-400.0,0.00019178,2]
[377889804,1754599841542,-620.18,0.00019178,2]
[377889806,1754599841552,-400.0,0.00019178,2]
[377889808,1754599841561,-400.0,0.00019178,2]
[377889810,1754599841570,-991.68,0.00019178,2]
[377889812,1754599841579,-578.8,0.00019178,2]
[377889814,1754599841590,-933.5,0.00019178,2]
[377889817,1754599841599,-400.0,0.00019178,2]
[377889819,1754599841609,-629.41,0.00019178,2]
[377889821,1754599841619,-612.17,0.00019178,2]
[377889823,1754599841628,-421.29,0.00019178,2]
[377889825,1754599841637,-400.0,0.00019178,2]
[377889827,1754599841646,-400.0,0.00019178,2]
[377889829,1754599841655,-417.89,0.00019178,2]
[377889831,1754599841664,-453.19,0.00019178,2]
[377889833,1754599841676,-400.0,0.00019178,2]
[377889835,1754599841686,-722.93,0.00019178,2]
[377889837,1754599841695,-419.94,0.00019178,2]
[377889839,1754599841705,-421.34280129,0.00019178,2]
[377889841,1754599841715,-730.1,0.00019178,2]
[377889843,1754599841725,-400.0,0.00019178,2]
[377889845,1754599841735,-400.0,0.00019178,2]
[377889847,1754599841746,-643.43,0.00019178,2]
[377889849,1754599841757,-400.0,0.00019178,2]
[377889851,1754599841767,-400.0,0.00019178,2]
[377889853,1754599841776,-1797.98,0.00019178,2]
[377889855,1754599841787,-466.01,0.00019178,2]
[377889857,1754599841797,-400.0,0.00019178,2]
[377889859,1754599841807,-513.38,0.00019178,2]
[377889861,1754599841818,-775.45,0.00019178,2]
[377889863,1754599841838,-400.0,0.00019178,2]
[377889864,1754599841848,-348.08812816,0.00019178,2]
[377889871,1754599842173,1456.90317646,0.00017918,2]
[377889920,1754599843281,-51.91187184,0.00019178,2]
[377889921,1754599843291,-400.0,0.00019178,2]
[377889922,1754599843301,-151.0,0.00019178,2]
[377889923,1754599843310,-415.19,0.00019178,2]
[377889924,1754599843320,-408.32,0.00019178,2]
[377889925,1754599843330,-400.0,0.00019178,2]
[377889926,1754599843339,-1266.92,0.00019178,2]
[377889927,1754599843349,-436.73,0.00019178,2]
[377889928,1754599843358,-400.0,0.00019178,2]
[377889929,1754599843367,-237.09885253,0.00019178,2]
[377889934,1754599846226,-1170.0,0.00019062,2]
[377889935,1754599846236,-162.90114747,0.00019178,2]
[377889936,1754599846245,-558.2,0.00019178,2]
[377889937,1754599846255,-672.21,0.00019178,2]
[377889938,1754599846263,-1035.7,0.00019178,2]
[377889939,1754599846272,-726.03,0.00019178,2]
[377889940,1754599846281,-1087.43,0.00019178,2]
[377889941,1754599846292,-728.46,0.00019178,2]
[377889942,1754599846301,-929.5,0.00019178,2]
[377889943,1754599846311,-400.0,0.00019178,2]
[377889944,1754599846320,-766.97,0.00019178,2]
[377889945,1754599846330,-760.26,0.00019178,2]
[377889946,1754599846339,-400.0,0.00019178,2]
[377889947,1754599846348,-464.12,0.00019178,2]
[377889948,1754599846357,-724.45,0.00019178,2]
[377889949,1754599846366,-400.0,0.00019178,2]
[377889950,1754599846375,-797.33,0.00019178,2]
[377889951,1754599846385,-400.0,0.00019178,2]
[377889952,1754599846394,-400.0,0.00019178,2]
[377889953,1754599846403,-1861.95,0.00019178,2]
[377889954,1754599846413,-400.0,0.00019178,2]
[377889955,1754599846425,-400.0,0.00019178,2]
[377889956,1754599846434,-400.0,0.00019178,2]
[377889957,1754599846443,-401.18156416,0.00019178,2]
[377889958,1754599846452,-517.13,0.00019178,2]
[377889959,1754599846463,-1465.19,0.00019178,2]
[377889960,1754599846472,-759.27,0.00019178,2]
[377889961,1754599846481,-540.9,0.00019178,2]
[377889962,1754599846491,-400.0,0.00019178,2]
[377889963,1754599846501,-1199.11,0.00019178,2]
[377889964,1754599846512,-400.0,0.00019178,2]
[377889965,1754599846521,-829.9,0.00019178,2]
[377889966,1754599846530,-433.31,0.00019178,2]
[377889967,1754599846539,-966.93,0.00019178,2]
[377889968,1754599846549,-844.16,0.00019178,2]
[377889969,1754599846559,-977.38,0.00019178,2]
[377889970,1754599846568,-1016.53,0.00019178,2]
[377889971,1754599846578,-400.0,0.00019178,2]
[377889972,1754599846587,-400.0,0.00019178,2]
[377889973,1754599846596,-400.0,0.00019178,2]
[377889974,1754599846607,-1170.99,0.00019178,2]
[377889975,1754599846616,-400.0,0.00019178,2]
[377889976,1754599846626,-1086.31,0.00019178,2]
[377889977,1754599846636,-402.5,0.00019178,2]
[377889978,1754599846645,-826.17,0.00019178,2]
[377889979,1754599846655,-400.0,0.00019178,2]
[377889980,1754599846664,-848.15,0.00019178,2]
[377889981,1754599846674,-400.0,0.00019178,2]
[377889982,1754599846683,-400.0,0.00019178,2]
[377889983,1754599846692,-735.81,0.00019178,2]
[377889984,1754599846702,-1666.64,0.00019178,2]
[377889985,1754599846711,-400.0,0.00019178,2]
[377889986,1754599846721,-400.0,0.00019178,2]
[377889987,1754599846732,-452.84,0.00019178,2]
[377889988,1754599846746,-400.0,0.00019178,2]
[377889989,1754599846755,-400.0,0.00019178,2]
[377889990,1754599846765,-884.71,0.00019178,2]
[377889991,1754599846774,-400.0,0.00019178,2]
[377889992,1754599846784,-400.0,0.00019178,2]
[377889993,1754599846793,-385.38467126,0.00019178,2]
[377889994,1754599846803,-400.0,0.00019178,2]
[377889995,1754599846812,-400.0,0.00019178,2]
[377889996,1754599846821,-1268.71,0.00019178,2]
[377889997,1754599846831,-400.0,0.00019178,2]
[377889998,1754599846840,-427.53,0.00019178,2]
[377889999,1754599846850,-400.0,0.00019178,2]
[377890000,1754599846859,-400.0,0.00019178,2]
[377890001,1754599846870,-400.0,0.00019178,2]
[377890002,1754599846879,-620.69,0.00019178,2]
[377890003,1754599846888,-400.0,0.00019178,2]
[377890004,1754599846898,-400.0,0.00019178,2]
[377890005,1754599846907,-1553.51,0.00019178,2]
[377890006,1754599846917,-400.0,0.00019178,2]
[377890007,1754599846927,-500.0,0.00019178,2]
[377890008,1754599846936,-500.0,0.00019178,2]
[377890009,1754599846946,-500.0,0.00019178,2]
[377890010,1754599846955,-861.8,0.00019178,2]
[377890011,1754599846965,-400.0,0.00019178,2]
[377890012,1754599846975,-500.0,0.00019178,2]
[377890013,1754599846984,-500.0,0.00019178,2]
[377890014,1754599846993,-500.0,0.00019178,2]
[377890015,1754599847002,-422.81,0.00019178,2]
[377890016,1754599847012,-400.0,0.00019178,2]
[377890017,1754599847021,-400.0,0.00019178,2]
[377890018,1754599847031,-400.0,0.00019178,2]
[377890019,1754599847040,-738.81,0.00019178,2]
[377890020,1754599847049,-491.41,0.00019178,2]
[377890021,1754599847058,-400.0,0.00019178,2]
[377890022,1754599847067,-957.82,0.00019178,2]
[377890023,1754599847077,-491.86,0.00019178,2]
[377890024,1754599847086,-608.31,0.00019178,2]
[377890025,1754599847095,-400.0,0.00019178,2]
[377890026,1754599847104,-508.72660191,0.00019178,2]
[377890027,1754599847113,-400.0,0.00019178,2]
[377890028,1754599847123,-1491.96,0.00019178,2]
[377890029,1754599847132,-449.26,0.00019178,2]
[377890030,1754599847142,-1291.95,0.00019178,2]
[377890031,1754599847151,-400.0,0.00019178,2]
[377890032,1754599847161,-400.0,0.00019178,2]
[377890033,1754599847171,-662.27,0.00019178,2]
[377890034,1754599847180,-400.0,0.00019178,2]
[377890035,1754599847190,-400.0,0.00019178,2]
[377890036,1754599847199,-1403.26,0.00019178,2]
[377890037,1754599847208,-479.71,0.00019178,2]
[377890038,1754599847218,-400.0,0.00019178,2]
[377890039,1754599847227,-400.0,0.00019178,2]
[377890040,1754599847236,-1048.94,0.00019178,2]
[377890041,1754599847245,-400.0,0.00019178,2]
[377890042,1754599847255,-1357.64,0.00019178,2]
[377890043,1754599847264,-400.0,0.00019178,2]
[377890044,1754599847273,-815.13,0.00019178,2]
[377890045,1754599847283,-400.0,0.00019178,2]
[377890046,1754599847292,-911.52,0.00019178,2]
[377890047,1754599847301,-400.0,0.00019178,2]
[377890048,1754599847311,-585.64,0.00019178,2]
[377890049,1754599847320,-1282.76,0.00019178,2]
[377890050,1754599847329,-975.98,0.00019178,2]
[377890051,1754599847338,-400.0,0.00019178,2]
[377890052,1754599847347,-534.07,0.00019178,2]
[377890053,1754599847356,-424.81,0.00019178,2]
[377890054,1754599847365,-416.91,0.00019178,2]
[377890055,1754599847375,-1530.66,0.00019178,2]
[377890056,1754599847384,-400.0,0.00019178,2]
[377890057,1754599847393,-1022.1,0.00019178,2]
[377890058,1754599847410,-400.0,0.00019178,2]
[377890059,1754599847421,-400.0,0.00019178,2]
[377890060,1754599847431,-400.0,0.00019178,2]
[377890061,1754599847441,-1801.74,0.00019178,2]
[377890062,1754599847450,-400.0,0.00019178,2]
[377890063,1754599847459,-761.57,0.00019178,2]
[377890064,1754599847470,-1130.88,0.00019178,2]
[377890065,1754599847479,-925.15,0.00019178,2]
[377890066,1754599847488,-400.0,0.00019178,2]
[377890067,1754599847499,-400.0,0.00019178,2]
[377890068,1754599847509,-706.67,0.00019178,2]
[377890069,1754599847519,-400.0,0.00019178,2]
[377890070,1754599847528,-1246.47,0.00019178,2]
[377890071,1754599847537,-1027.37,0.00019178,2]
[377890072,1754599847547,-1439.89,0.00019178,2]
[377890073,1754599847556,-415.62,0.00019178,2]
[377890074,1754599847565,-400.0,0.00019178,2]
[377890075,1754599847575,-400.0,0.00019178,2]
[377890076,1754599847584,-400.0,0.00019178,2]
[377890077,1754599847593,-400.0,0.00019178,2]
[377890078,1754599847602,-817.3,0.00019178,2]
[377890079,1754599847611,-1183.11,0.00019178,2]
[377890080,1754599847621,-767.25,0.00019178,2]
[377890081,1754599847630,-400.0,0.00019178,2]
[377890082,1754599847640,-1017.47,0.00019178,2]
[377890083,1754599847650,-400.0,0.00019178,2]
[377890084,1754599847659,-403.19314074,0.00019178,2]
[377890085,1754599847668,-400.0,0.00019178,2]
[377890086,1754599847679,-400.0,0.00019178,2]
[377890087,1754599847688,-400.0,0.00019178,2]
[377890088,1754599847697,-509.36,0.00019178,2]
[377890089,1754599847707,-85.26282663,0.00019178,2]
[377890090,1754599848547,-314.73717337,0.00019178,2]
[377890091,1754599848556,-700.8,0.00019178,2]
[377890092,1754599848565,-1556.55,0.00019178,2]
[377890093,1754599848575,-1142.64,0.00019178,2]
[377890094,1754599848583,-157.17282663,0.00019178,2]
[377890095,1754599848595,-254.86717337,0.00019178,2]
[377890096,1754599848604,-2274.32,0.00019178,2]
[377890097,1754599848614,-841.89,0.00019178,2]
[377890098,1754599848623,-400.0,0.00019178,2]
[377890099,1754599848633,-2373.71,0.00019178,2]
[377890100,1754599848642,-1146.27,0.00019178,2]
[377890101,1754599848651,-699.9,0.00019178,2]
[377890102,1754599848660,-200.0,0.00019178,2]
[377890103,1754599848669,-151.0,0.00019178,2]
[377890104,1754599848680,-151.0,0.00019178,2]
[377890105,1754599848689,-400.0,0.00019178,2]
[377890106,1754599848699,-400.0,0.00019178,2]
[377890107,1754599848708,-400.0,0.00019178,2]
[377890108,1754599848718,-400.0,0.00019178,2]
[377890109,1754599848727,-400.0,0.00019178,2]
[377890110,1754599848736,-400.0,0.00019178,2]
[377890111,1754599848745,-1505.84,0.00019178,2]
[377890112,1754599848755,-1495.29,0.00019178,2]
[377890113,1754599848764,-400.0,0.00019178,2]
[377890114,1754599848777,-400.0,0.00019178,2]
[377890115,1754599848789,-400.0,0.00019178,2]
[377890116,1754599848798,-694.45,0.00019178,2]
[377890117,1754599848807,-400.0,0.00019178,2]
[377890118,1754599848817,-503.07,0.00019178,2]
[377890119,1754599848826,-778.09,0.00019178,2]
[377890120,1754599848836,-400.0,0.00019178,2]
[377890121,1754599848845,-400.0,0.00019178,2]
[377890122,1754599848855,-598.32,0.00019178,2]
[377890123,1754599848865,-400.0,0.00019178,2]
[377890124,1754599848875,-400.0,0.00019178,2]
[377890125,1754599848885,-435.04,0.00019178,2]
[377890126,1754599848894,-400.0,0.00019178,2]
[377890127,1754599848904,-823.93,0.00019178,2]
[377890128,1754599848914,-400.0,0.00019178,2]
[377890129,1754599848923,-1542.65,0.00019178,2]
[377890130,1754599848933,-400.0,0.00019178,2]
[377890131,1754599848943,-400.0,0.00019178,2]
[377890132,1754599848952,-632.14,0.00019178,2]
[377890133,1754599848962,-400.0,0.00019178,2]
[377890134,1754599848972,-660.0,0.00019178,2]
[377890135,1754599848982,-550.91,0.00019178,2]
[377890136,1754599848991,-662.37,0.00019178,2]
[377890137,1754599849001,-1603.74,0.00019178,2]
[377890138,1754599849010,-400.0,0.00019178,2]
[377890139,1754599849019,-1415.98,0.00019178,2]
[377890140,1754599849028,-544.35,0.00019178,2]
[377890141,1754599849038,-400.0,0.00019178,2]
[377890142,1754599849047,-400.0,0.00019178,2]
[377890143,1754599849057,-400.0,0.00019178,2]
[377890144,1754599849066,-595.58,0.00019178,2]
[377890145,1754599849077,-614.11,0.00019178,2]
[377890146,1754599849087,-400.0,0.00019178,2]
[377890147,1754599849096,-400.0,0.00019178,2]
[377890148,1754599849105,-400.0,0.00019178,2]
[377890149,1754599849115,-1498.65,0.00019178,2]
[377890150,1754599849124,-400.0,0.00019178,2]
[377890151,1754599849133,-400.0,0.00019178,2]
[377890152,1754599849143,-686.49,0.00019178,2]
[377890153,1754599849152,-400.0,0.00019178,2]
[377890154,1754599849161,-855.08,0.00019178,2]
[377890155,1754599849170,-400.0,0.00019178,2]
[377890156,1754599849180,-469.8,0.00019178,2]
[377890157,1754599849190,-451.6,0.00019178,2]
[377890158,1754599849199,-1710.39,0.00019178,2]
[377890159,1754599849208,-400.0,0.00019178,2]
[377890160,1754599849217,-400.0,0.00019178,2]
[377890161,1754599849227,-400.0,0.00019178,2]
[377890162,1754599849236,-400.0,0.00019178,2]
[377890163,1754599849246,-706.93,0.00019178,2]
[377890164,1754599849255,-799.27,0.00019178,2]
[377890165,1754599849265,-400.0,0.00019178,2]
[377890166,1754599849273,-400.0,0.00019178,2]
[377890167,1754599849283,-820.65,0.00019178,2]
[377890168,1754599849292,-567.25,0.00019178,2]
[377890169,1754599849302,-400.0,0.00019178,2]
[377890170,1754599849311,-1109.67,0.00019178,2]
[377890171,1754599849320,-400.0,0.00019178,2]
[377890172,1754599849330,-400.0,0.00019178,2]
[377890173,1754599849339,-1527.88,0.00019178,2]
[377890174,1754599849348,-1431.49,0.00019178,2]
[377890175,1754599849357,-400.0,0.00019178,2]
[377890176,1754599849367,-1796.13,0.00019178,2]
[377890177,1754599849377,-897.33,0.00019178,2]
[377890178,1754599849386,-1560.0,0.00019178,2]
[377890179,1754599849395,-400.0,0.00019178,2]
[377890180,1754599849404,-219.45466519,0.00019178,2]
[377890181,1754599849413,-762.61,0.00019178,2]
[377890182,1754599849425,-1590.69,0.00019178,2]
[377890183,1754599849435,-400.0,0.00019178,2]
[377890184,1754599849444,-466.51,0.00019178,2]
[377890185,1754599849453,-500.0,0.00019178,2]
[377890186,1754599849463,-648.44617845,0.00019178,2]
[377890187,1754599849475,-408.89,0.00019178,2]
[377890188,1754599849486,-400.0,0.00019178,2]
[377890189,1754599849500,-400.0,0.00019178,2]
[377890190,1754599849510,-400.0,0.00019178,2]
[377890191,1754599849520,-400.0,0.00019178,2]
[377890192,1754599849529,-400.0,0.00019178,2]
[377890193,1754599849538,-400.0,0.00019178,2]
[377890194,1754599849547,-1687.63,0.00019178,2]
[377890195,1754599849557,-1428.42,0.00019178,2]
[377890196,1754599849566,-400.0,0.00019178,2]
[377890197,1754599849575,-785.95,0.00019178,2]
[377890198,1754599849585,-400.0,0.00019178,2]
[377890199,1754599849595,-400.0,0.00019178,2]
[377890200,1754599849604,-1080.5,0.00019178,2]
[377890201,1754599849613,-1696.95,0.00019178,2]
[377890202,1754599849622,-426.59,0.00019178,2]
[377890203,1754599849631,-400.0,0.00019178,2]
[377890204,1754599849640,-719.11,0.00019178,2]
[377890205,1754599849649,-400.0,0.00019178,2]
[377890206,1754599849659,-400.0,0.00019178,2]
[377890207,1754599849668,-400.0,0.00019178,2]
[377890208,1754599849678,-805.2,0.00019178,2]
[377890209,1754599849688,-400.0,0.00019178,2]
[377890210,1754599849697,-448.6,0.00019178,2]
[377890211,1754599849706,-714.26,0.00019178,2]
[377890212,1754599849716,-376.26353243,0.00019178,2]
[377890213,1754599849725,-559.58,0.00019178,2]
[377890214,1754599849735,-443.12,0.00019178,2]
[377890215,1754599849744,-400.0,0.00019178,2]
[377890216,1754599849753,-1096.98,0.00019178,2]
[377890217,1754599849763,-400.0,0.00019178,2]
[377890218,1754599849772,-400.0,0.00019178,2]
[377890219,1754599849781,-1067.76,0.00019178,2]
[377890220,1754599849791,-459.71719919,0.00019178,2]
[377890221,1754599849800,-400.0,0.00019178,2]
[377890222,1754599849809,-493.76,0.00019178,2]
[377890223,1754599849818,-512.5,0.00019178,2]
[377890224,1754599849827,-400.0,0.00019178,2]
[377890225,1754599849837,-400.0,0.00019178,2]
[377890226,1754599849847,-400.0,0.00019178,2]
[377890227,1754599849856,-754.27,0.00019178,2]
[377890228,1754599849865,-400.0,0.00019178,2]
[377890229,1754599849876,-400.0,0.00019178,2]
[377890230,1754599849887,-511.86,0.00019178,2]
[377890231,1754599849896,-526.23,0.00019178,2]
[377890232,1754599849906,-1567.52,0.00019178,2]
[377890233,1754599849916,-400.0,0.00019178,2]
[377890234,1754599849925,-480.65,0.00019178,2]
[377890235,1754599849935,-400.0,0.00019178,2]
[377890236,1754599849944,-400.0,0.00019178,2]
[377890237,1754599849953,-1776.47,0.00019178,2]
[377890238,1754599849963,-1248.82,0.00019178,2]
[377890239,1754599849972,-400.0,0.00019178,2]
[377890240,1754599849981,-400.0,0.00019178,2]
[377890241,1754599849990,-400.0,0.00019178,2]
[377890242,1754599850000,-946.86,0.00019178,2]
[377890243,1754599850009,-400.0,0.00019178,2]
[377890244,1754599850018,-1342.85,0.00019178,2]
[377890245,1754599850028,-400.0,0.00019178,2]
[377890246,1754599850037,-1368.82,0.00019178,2]
[377890247,1754599850046,-560.62,0.00019178,2]
[377890248,1754599850056,-400.0,0.00019178,2]
[377890249,1754599850065,-766.19,0.00019178,2]
[377890250,1754599850075,-447.99,0.00019178,2]
[377890251,1754599850084,-400.0,0.00019178,2]
[377890252,1754599850093,-453.68,0.00019178,2]
[377890253,1754599850103,-500.0,0.00019178,2]
[377890254,1754599850112,-500.0,0.00019178,2]
[377890255,1754599850122,-500.0,0.00019178,2]
[377890256,1754599850131,-500.0,0.00019178,2]
[377890257,1754599850140,-500.0,0.00019178,2]
[377890258,1754599850149,-500.0,0.00019178,2]